{"text_format":"3","workbook":"xlsx","n_sheets":4,"sheets":["Formulaire de devis","Données du graphique","Ventilation du coût","Synthèse du coût du devis"],"not_rendered":{"charts":1,"images":2,"defined_names":11},"read":"whole","date_system":"1900"}

{"sheet":"Formulaire de devis","index":0,"n_rows":21,"n_cols":6,"rows_kept":21,"merged":[[0,1,0,4],[1,1,1,2],[7,1,8,1],[7,2,8,2],[10,1,10,5],[12,1,12,5],[14,1,14,5],[15,1,15,2],[15,4,15,5],[16,1,16,2],[16,4,16,5],[18,1,18,5],[19,1,19,2],[19,4,19,5],[20,1,20,2],[20,4,20,5]]}
[null,"Formulaire de devis de construction"]
[null,"Informations du propriétaire",null,null,"Informations de l’entrepreneur"]
[null,"Nom","Entrez le nom du propriétaire de cette cellule.",null,"Société","Entrez le nom de la société de l’entrepreneur dans cette cellule."]
[null,"Adresse","Entrez l’adresse du propriétaire dans cette cellule.",null,"Nom","Entrez le nom de l’entrepreneur dans cette cellule."]
[null,"Code postal, Ville","Entrez le code postal, la ville et le département du propriétaire dans cette cellule.",null,"Adresse","Entrez l’adresse de l’entrepreneur dans cette cellule."]
[null,"Téléphone","Entrez le numéro de téléphone du propriétaire dans cette cellule.",null,"Code postal, Ville","Entrez le code postal, la ville et le département de l’entrepreneur dans cette cellule."]
[null,"Courriel","Entrez l’adresse de courriel du propriétaire dans cette cellule.",null,"Téléphone","Entrez le numéro de téléphone de l’entrepreneur dans cette cellule."]
[null,"Nom du projet","Entrez le nom du projet dans cette cellule.",null,"Courriel","Entrez l’adresse de courriel de l’entrepreneur dans cette cellule. "]
[{"$nulls":4},"Date d’obtention","Entrez la date d’achèvement dans cette cellule."]
[null,"Ampleur des tâches"]
[null,"L’ampleur des tâches du projet vient ici. Tapez toutes les spécifications souhaitées. \n\nExemple de texte : Ceci est un projet fictif de construction d'un vaste ensemble d'escaliers. Pour construire la structure, nous n'utiliserons que du bois d'œuvre de 2 x 4 et 2 x 8, ainsi que des poutrelles. Les escaliers seront découpés dans les matériaux de 2 x 4. Nous utiliserons des vis de minimum 2 pouces.  Les clous éventuels seront d’au moins 10 pouces. Les marches pèseront au minimum 500 kilos. Les marches seront au même niveau que celles de la maison. Une passerelle sera fixée à la maison. Un entrepreneur se chargera du nettoyage."]
[null,"Non inclus"]
[null,"Les détails du projet qui ne sont pas inclus viennent ici. Tapez tout ce qui n’est pas inclus dans ce devis. \n\nExemple de texte : Aucun rail ne sera installé. La préparation de la base incombe au propriétaire. La peinture des escaliers incombe au propriétaire."]
[null,"Proposition de la société"]
[null,"La proposition de la société vient ici. Entrez un aperçu de la proposition, indiquant qui propose les tâches, la date d'achèvement prévue et le coût.\n\nExemple de texte : Nous, (Nom de la société), proposons de livrer (Ampleur des tâches) comme décrit ci-dessus au plus tard le (Date d’achèvement) pour la somme de (Montant total)."]
[]
[null,"Signé par (Représentant de la société)",null,null,"Date"]
[null,"Acceptation du propriétaire"]
[null,"L’acceptation du propriétaire vient ici. Tapez le nom du propriétaire dans une déclaration de confirmation incluant la date d'achèvement et le montant total mentionnés dans la proposition de la société. \n\nExemple de texte : Je soussigné (Nom du propriétaire), m’engage à réceptionner (Ampleur des tâches) comme décrit ci-dessus au plus tard le (Date d’achèvement) pour la somme de (Montant total)."]
[]
[null,"Signé par (propriétaire du bâtiment ou représentant autorisé)",null,null,"Date"]

{"sheet":"Données du graphique","index":1,"n_rows":7,"n_cols":3,"rows_kept":7,"hidden":true}
[]
[null,null,"Total"]
[null,{"$f":"INDEX(PostesDevis[#Data],MATCH(1,PostesDevis[Coûts classés],0),2)","v":"Main-d’œuvre"},{"$f":"INDEX(PostesDevis[#Data],MATCH(1,PostesDevis[Coûts classés],0),4)","v":200}]
[null,{"$f":"INDEX(PostesDevis[#Data],MATCH(2,PostesDevis[Coûts classés],0),2)","v":"Bois d'œuvre 2 x 4 x 10"},{"$f":"INDEX(PostesDevis[#Data],MATCH(2,PostesDevis[Coûts classés],0),4)","v":99.39999999999999}]
[null,{"$f":"INDEX(PostesDevis[#Data],MATCH(3,PostesDevis[Coûts classés],0),2)","v":"Poutrelles"},{"$f":"INDEX(PostesDevis[#Data],MATCH(3,PostesDevis[Coûts classés],0),4)","v":74.7}]
[null,{"$f":"INDEX(PostesDevis[#Data],MATCH(4,PostesDevis[Coûts classés],0),2)","v":"Bois d'œuvre 2 x 8 x 10"},{"$f":"INDEX(PostesDevis[#Data],MATCH(4,PostesDevis[Coûts classés],0),4)","v":33.75}]
[null,{"$f":"INDEX(PostesDevis[#Data],MATCH(5,PostesDevis[Coûts classés],0),2)","v":"Paire de gants en cuir"},{"$f":"INDEX(PostesDevis[#Data],MATCH(5,PostesDevis[Coûts classés],0),4)","v":15.5}]

{"sheet":"Ventilation du coût","index":2,"n_rows":14,"n_cols":6,"rows_kept":14,"merged":[[0,1,0,4],[1,1,1,4]]}
[null,"Ventilation du coût",{"$nulls":3}," "]
[null,"Liste des matériaux et des coûts"]
[null,"Qté","Description","Coût","Total","Coûts classés"]
[null,{"v":5,"d":"5 "},"Bois d'œuvre 2 x 8 x 10",{"v":6.75,"d":"6.75 $"},{"$f":"IFERROR(PostesDevis[[#This Row],[Coût]]*PostesDevis[[#This Row],[Qté]], \"\")","v":{"v":33.75,"d":"33.75 $"}},{"$f":"_xlfn.RANK.EQ(PostesDevis[[#This Row],[Total]],PostesDevis[Total])","v":4}]
[null,{"v":20,"d":"20 "},"Bois d'œuvre 2 x 4 x 10",{"v":4.97,"d":"4.97 $"},{"$f":"IFERROR(PostesDevis[[#This Row],[Coût]]*PostesDevis[[#This Row],[Qté]], \"\")","v":{"v":99.39999999999999,"d":"99.40 $"}},{"$f":"_xlfn.RANK.EQ(PostesDevis[[#This Row],[Total]],PostesDevis[Total])","v":2}]
[null,{"v":30,"d":"30 "},"Poutrelles",{"v":2.49,"d":"2.49 $"},{"$f":"IFERROR(PostesDevis[[#This Row],[Coût]]*PostesDevis[[#This Row],[Qté]], \"\")","v":{"v":74.7,"d":"74.70 $"}},{"$f":"_xlfn.RANK.EQ(PostesDevis[[#This Row],[Total]],PostesDevis[Total])","v":3}]
[null,{"v":2,"d":"2 "},"Boîte de vis de 2 pouces",{"v":6.67,"d":"6.67 $"},{"$f":"IFERROR(PostesDevis[[#This Row],[Coût]]*PostesDevis[[#This Row],[Qté]], \"\")","v":{"v":13.34,"d":"13.34 $"}},{"$f":"_xlfn.RANK.EQ(PostesDevis[[#This Row],[Total]],PostesDevis[Total])","v":6}]
[null,{"v":2,"d":"2 "},"Boîte de clous de 10 pouces",{"v":3.25,"d":"3.25 $"},{"$f":"IFERROR(PostesDevis[[#This Row],[Coût]]*PostesDevis[[#This Row],[Qté]], \"\")","v":{"v":6.5,"d":"6.50 $"}},{"$f":"_xlfn.RANK.EQ(PostesDevis[[#This Row],[Total]],PostesDevis[Total])","v":7}]
[null,{"v":2,"d":"2 "},"Paire de gants en cuir",{"v":7.75,"d":"7.75 $"},{"$f":"IFERROR(PostesDevis[[#This Row],[Coût]]*PostesDevis[[#This Row],[Qté]], \"\")","v":{"v":15.5,"d":"15.50 $"}},{"$f":"_xlfn.RANK.EQ(PostesDevis[[#This Row],[Total]],PostesDevis[Total])","v":5}]
[null,{"v":2,"d":"2 "},"Main-d’œuvre",{"v":100,"d":"100.00 $"},{"$f":"IFERROR(PostesDevis[[#This Row],[Coût]]*PostesDevis[[#This Row],[Qté]], \"\")","v":{"v":200,"d":"200.00 $"}},{"$f":"_xlfn.RANK.EQ(PostesDevis[[#This Row],[Total]],PostesDevis[Total])","v":1}]
[4,null,null,"Sous-total",{"$f":"SUBTOTAL(109,PostesDevis[Total])","v":{"v":443.18999999999994,"d":"443.19 $"}}]
[5,null,null,"Taux de TVA",{"v":0.075,"d":"7.50%"}]
[{"$nulls":3},"TVA",{"$f":"IFERROR(TauxDeTVA*PostesDevis[[#Totals],[Total]], \"\")","v":{"v":33.23924999999999,"d":"33.24 $"}}]
[{"$nulls":3},"Total général",{"$f":"IFERROR(TVA+PostesDevis[[#Totals],[Total]], \"\")","v":{"v":476.4292499999999,"d":"476.43 $"}}]

{"sheet":"Synthèse du coût du devis","index":3,"n_rows":3,"n_cols":4,"rows_kept":3}
[null,"Synthèse du coût du devis"]
[null,"Ventilation des matériaux et des coûts",null,"Notes"]
[null,"Diagramme à secteurs montrant les 5 coûts principaux par matériau. Données basées sur le tableau Postes du devis dans la feuille de calcul Ventilation du coût",null,"Entrez les notes dans cette cellule."]